[Event "Titled Tuesday Blitz June 28 Late 2022"]
[White "Pakleza, Zbigniew"]
[Black "Lopez Gracia, Fernando"]
[WhiteFideId "1119290"]
[BlackFideId "2207184"]
[WhiteElo "2467"]
[BlackElo "2441"]
[Result "1-0"]
[Round "01"]
[TimeControl "180+1"]
[Date "2022.06.28"]
[WhiteClock "0:00:38"]
[BlackClock "0:01:23"]

1. d4 {[%clk 0:03:00]}  Nf6 {[%clk 0:02:58]} 2. Nf3 {[%clk 0:03:00]}  e6 {[%clk 0:02:58]} 3. Bf4 {[%clk 0:03:00]}  c5 {[%clk 0:02:58]} 4. c3 {[%clk 0:03:00]}  b6 {[%clk 0:02:59]} 5. e3 {[%clk 0:02:59]}  Bb7 {[%clk 0:02:59]} 6. Nbd2 {[%clk 0:03:00]}  Be7 {[%clk 0:02:59]} 7. h3 {[%clk 0:02:52]}  O-O {[%clk 0:02:58]} 8. Bd3 {[%clk 0:02:52]}  cxd4 {[%clk 0:02:57]} 9. cxd4 {[%clk 0:02:50]}  d5 {[%clk 0:02:57]} 10. O-O {[%clk 0:02:50]}  Nc6 {[%clk 0:02:57]} 11. a3 {[%clk 0:02:49]}  Rc8 {[%clk 0:02:57]} 12. Rc1 {[%clk 0:02:38]}  Bd6 {[%clk 0:02:58]} 13. Ne5 {[%clk 0:02:21]}  Bxe5 {[%clk 0:02:48]} 14. dxe5 {[%clk 0:02:22]}  Nd7 {[%clk 0:02:48]} 15. Nf3 {[%clk 0:02:20]}  Nc5 {[%clk 0:02:47]} 16. Bb1 {[%clk 0:02:14]}  h6 {[%clk 0:02:47]} 17. b4 {[%clk 0:02:05]}  Ne4 {[%clk 0:02:43]} 18. Qb3 {[%clk 0:02:03]}  Ne7 {[%clk 0:02:38]} 19. Rfd1 {[%clk 0:01:55]}  Rxc1 {[%clk 0:02:35]} 20. Rxc1 {[%clk 0:01:51]}  Qd7 {[%clk 0:02:35]} 21. Bd3 {[%clk 0:01:35]}  Rc8 {[%clk 0:02:34]} 22. Qb2 {[%clk 0:01:31]}  Rxc1+ {[%clk 0:02:31]} 23. Qxc1 {[%clk 0:01:32]}  Qc6 {[%clk 0:02:31]} 24. Qxc6 {[%clk 0:01:29]}  Bxc6 {[%clk 0:02:32]} 25. Nd4 {[%clk 0:01:27]}  Bd7 {[%clk 0:02:29]} 26. f3 {[%clk 0:01:25]}  Nd2 {[%clk 0:02:18]} 27. b5 {[%clk 0:00:53]}  g5 {[%clk 0:02:12]} 28. Bg3 {[%clk 0:00:50]}  Nc4 {[%clk 0:02:06]} 29. Bxc4 {[%clk 0:00:50]}  dxc4 {[%clk 0:02:07]} 30. e4 {[%clk 0:00:47]}  c3 {[%clk 0:02:05]} 31. a4 {[%clk 0:00:44]}  Ng6 {[%clk 0:01:48]} 32. Kf2 {[%clk 0:00:41]}  Kf8 {[%clk 0:01:40]} 33. Ke3 {[%clk 0:00:42]}  Ke7 {[%clk 0:01:28]} 34. Kd3 {[%clk 0:00:41]}  a6 {[%clk 0:01:23]} 35. bxa6 {[%clk 0:00:38]}  Kd8 {[%clk 0:01:23]} 1-0


[Site "https://www.chess.com"]

[Event "Titled Tuesday Blitz June 28 Late 2022"]
[White "Pershin, Denis"]
[Black "Prydun, Andriy"]
[WhiteFideId "24165506"]
[BlackFideId "14145898"]
[WhiteElo "2275"]
[BlackElo "2063"]
[Result "1-0"]
[Round "01"]
[TimeControl "180+1"]
[Date "2022.06.29"]
[WhiteClock "0:02:06"]
[BlackClock "0:00:31"]

1. c4 {[%clk 0:02:57]}  c6 {[%clk 0:02:55]} 2. Nf3 {[%clk 0:02:54]}  Nf6 {[%clk 0:02:54]} 3. g3 {[%clk 0:02:53]}  e6 {[%clk 0:02:54]} 4. Bg2 {[%clk 0:02:54]}  d5 {[%clk 0:02:54]} 5. b3 {[%clk 0:02:53]}  Bd6 {[%clk 0:02:52]} 6. O-O {[%clk 0:02:54]}  O-O {[%clk 0:02:52]} 7. Bb2 {[%clk 0:02:54]}  Nbd7 {[%clk 0:02:52]} 8. d4 {[%clk 0:02:49]}  b6 {[%clk 0:02:48]} 9. Re1 {[%clk 0:02:50]}  Ba6 {[%clk 0:02:47]} 10. Nbd2 {[%clk 0:02:49]}  Qb8 {[%clk 0:02:42]} 11. e4 {[%clk 0:02:49]}  Bc7 {[%clk 0:02:29]} 12. Rc1 {[%clk 0:02:47]}  Rd8 {[%clk 0:02:23]} 13. Bf1 {[%clk 0:02:46]}  Qb7 {[%clk 0:02:13]} 14. e5 {[%clk 0:02:36]}  Ne8 {[%clk 0:02:12]} 15. Bd3 {[%clk 0:02:32]}  h6 {[%clk 0:02:10]} 16. Bb1 {[%clk 0:02:31]}  c5 {[%clk 0:02:03]} 17. cxd5 {[%clk 0:02:29]}  exd5 {[%clk 0:01:38]} 18. Nh4 {[%clk 0:02:30]}  Nf8 {[%clk 0:01:35]} 19. Nf5 {[%clk 0:02:26]}  Kh8 {[%clk 0:01:00]} 20. Qg4 {[%clk 0:02:26]}  Qc6 {[%clk 0:00:54]} 21. dxc5 {[%clk 0:02:10]}  bxc5 {[%clk 0:00:54]} 22. e6 {[%clk 0:02:11]}  f6 {[%clk 0:00:46]} 23. e7 {[%clk 0:02:09]}  Ne6 {[%clk 0:00:30]} 24. exd8=Q {[%clk 0:02:08]}  Rxd8 {[%clk 0:00:31]} 25. Ne7 {[%clk 0:02:06]} 1-0


[Site "https://www.chess.com"]

[Event "Titled Tuesday Blitz June 28 Late 2022"]
[White "Perske, Thore"]
[Black "Hansen, Eric"]
[WhiteFideId "12902195"]
[BlackFideId "2606771"]
[WhiteElo "2315"]
[BlackElo "2568"]
[Result "1/2-1/2"]
[Round "01"]
[TimeControl "180+1"]
[Date "2022.06.28"]
[WhiteClock "0:00:05"]
[BlackClock "0:00:03"]

1. e4 {[%clk 0:03:00]}  c5 {[%clk 0:02:37]} 2. Nf3 {[%clk 0:02:33]}  e6 {[%clk 0:02:35]} 3. d4 {[%clk 0:02:32]}  cxd4 {[%clk 0:02:34]} 4. Nxd4 {[%clk 0:02:33]}  a6 {[%clk 0:02:34]} 5. c4 {[%clk 0:02:32]}  Nf6 {[%clk 0:02:31]} 6. Nc3 {[%clk 0:02:32]}  Qc7 {[%clk 0:02:31]} 7. Be2 {[%clk 0:02:27]}  Nc6 {[%clk 0:02:29]} 8. O-O {[%clk 0:02:25]}  Be7 {[%clk 0:02:28]} 9. Be3 {[%clk 0:02:21]}  O-O {[%clk 0:02:27]} 10. Rc1 {[%clk 0:02:21]}  Qb8 {[%clk 0:02:23]} 11. Nxc6 {[%clk 0:02:16]}  dxc6 {[%clk 0:02:17]} 12. f4 {[%clk 0:02:10]}  e5 {[%clk 0:02:16]} 13. f5 {[%clk 0:02:08]}  Rd8 {[%clk 0:02:11]} 14. Qc2 {[%clk 0:02:04]}  b5 {[%clk 0:02:08]} 15. Rfd1 {[%clk 0:01:55]}  Bd7 {[%clk 0:02:00]} 16. c5 {[%clk 0:01:50]}  a5 {[%clk 0:01:57]} 17. a3 {[%clk 0:01:48]}  Qc7 {[%clk 0:01:40]} 18. b4 {[%clk 0:01:45]}  Be8 {[%clk 0:01:21]} 19. Rxd8 {[%clk 0:01:44]}  Rxd8 {[%clk 0:01:20]} 20. Rd1 {[%clk 0:01:44]}  Ra8 {[%clk 0:01:20]} 21. g4 {[%clk 0:01:38]}  h6 {[%clk 0:01:20]} 22. h3 {[%clk 0:01:37]}  Nh7 {[%clk 0:01:15]} 23. Kg2 {[%clk 0:01:28]}  Bg5 {[%clk 0:01:14]} 24. Bxg5 {[%clk 0:01:27]}  Nxg5 {[%clk 0:01:13]} 25. h4 {[%clk 0:01:26]}  Nh7 {[%clk 0:01:13]} 26. Qd2 {[%clk 0:01:21]}  axb4 {[%clk 0:01:13]} 27. axb4 {[%clk 0:01:21]}  Qe7 {[%clk 0:01:13]} 28. Kg3 {[%clk 0:01:15]}  Ra3 {[%clk 0:01:08]} 29. Qb2 {[%clk 0:01:14]}  Ra8 {[%clk 0:01:08]} 30. Ra1 {[%clk 0:01:09]}  Rd8 {[%clk 0:01:08]} 31. Rd1 {[%clk 0:01:08]}  Ra8 {[%clk 0:01:01]} 32. Ra1 {[%clk 0:01:07]}  Rb8 {[%clk 0:00:57]} 33. Qa2 {[%clk 0:01:01]}  Rd8 {[%clk 0:00:52]} 34. Rd1 {[%clk 0:00:57]}  Rd4 {[%clk 0:00:52]} 35. Qb2 {[%clk 0:00:36]}  Nf6 {[%clk 0:00:52]} 36. Bf3 {[%clk 0:00:34]}  g6 {[%clk 0:00:43]} 37. Rxd4 {[%clk 0:00:17]}  exd4 {[%clk 0:00:43]} 38. Ne2 {[%clk 0:00:17]}  Nxe4+ {[%clk 0:00:14]} 39. Bxe4 {[%clk 0:00:17]}  Qxe4 {[%clk 0:00:15]} 40. Nxd4 {[%clk 0:00:18]}  Bd7 {[%clk 0:00:11]} 41. Qf2 {[%clk 0:00:14]}  Qe5+ {[%clk 0:00:08]} 42. Qf4 {[%clk 0:00:12]}  Qe1+ {[%clk 0:00:08]} 43. Kf3 {[%clk 0:00:10]}  Qxb4 {[%clk 0:00:07]} 44. Qb8+ {[%clk 0:00:08]}  Kg7 {[%clk 0:00:03]} 45. Qd6 {[%clk 0:00:06]}  Qc3+ {[%clk 0:00:03]} 46. Kf4 {[%clk 0:00:05]}  Be8 {[%clk 0:00:02]} 47. f6+ {[%clk 0:00:05]}  Kh7 {[%clk 0:00:03]} 48. Ke4 {[%clk 0:00:02]}  Qe1+ {[%clk 0:00:02]} 49. Kd3 {[%clk 0:00:02]}  Qd1+ {[%clk 0:00:03]} 50. Ke4 {[%clk 0:00:03]}  Qe1+ {[%clk 0:00:03]} 51. Kd3 {[%clk 0:00:03]}  Qf1+ {[%clk 0:00:03]} 52. Kc3 {[%clk 0:00:03]}  Qc4+ {[%clk 0:00:03]} 53. Kd2 {[%clk 0:00:04]}  Qb4+ {[%clk 0:00:03]} 54. Ke3 {[%clk 0:00:04]}  Qc3+ {[%clk 0:00:03]} 55. Ke4 {[%clk 0:00:05]}  Qe1+ {[%clk 0:00:03]} 1/2-1/2


[Site "https://www.chess.com"]

[Event "Titled Tuesday Blitz June 28 Late 2022"]
[White "Phillips, Rene"]
[Black "Koellner, Ruben Gideon"]
[WhiteFideId "2056275"]
[BlackFideId "12993093"]
[WhiteElo "2204"]
[BlackElo "2580"]
[Result "0-1"]
[Round "01"]
[TimeControl "180+1"]
[Date "2022.06.29"]
[WhiteClock "0:00:19"]
[BlackClock "0:00:04"]

1. Nf3 {[%clk 0:03:00]}  Nf6 {[%clk 0:02:58]} 2. d4 {[%clk 0:03:00]}  d6 {[%clk 0:02:56]} 3. Bf4 {[%clk 0:03:00]}  g6 {[%clk 0:02:55]} 4. e3 {[%clk 0:03:01]}  Bg7 {[%clk 0:02:56]} 5. h3 {[%clk 0:03:01]}  O-O {[%clk 0:02:56]} 6. Bc4 {[%clk 0:03:01]}  Nc6 {[%clk 0:02:57]} 7. O-O {[%clk 0:03:00]}  Nd7 {[%clk 0:02:57]} 8. Nc3 {[%clk 0:03:00]}  e5 {[%clk 0:02:57]} 9. Bg5 {[%clk 0:02:59]}  Bf6 {[%clk 0:02:50]} 10. Bh6 {[%clk 0:02:55]}  Bg7 {[%clk 0:02:47]} 11. Bxg7 {[%clk 0:02:54]}  Kxg7 {[%clk 0:02:48]} 12. dxe5 {[%clk 0:02:54]}  dxe5 {[%clk 0:02:32]} 13. Qe2 {[%clk 0:02:52]}  Nb6 {[%clk 0:02:30]} 14. Rfd1 {[%clk 0:02:46]}  Qe7 {[%clk 0:02:29]} 15. Bb3 {[%clk 0:02:36]}  Na5 {[%clk 0:02:08]} 16. Qb5 {[%clk 0:02:27]}  Nxb3 {[%clk 0:02:04]} 17. axb3 {[%clk 0:02:28]}  Re8 {[%clk 0:01:52]} 18. Ra5 {[%clk 0:02:20]}  f6 {[%clk 0:01:46]} 19. Qe2 {[%clk 0:02:04]}  Bf5 {[%clk 0:01:34]} 20. Nd5 {[%clk 0:01:59]}  Nxd5 {[%clk 0:01:33]} 21. Raxd5 {[%clk 0:01:58]}  c6 {[%clk 0:01:32]} 22. Rd6 {[%clk 0:01:58]}  Rad8 {[%clk 0:01:31]} 23. Rxd8 {[%clk 0:01:56]}  Rxd8 {[%clk 0:01:31]} 24. Rxd8 {[%clk 0:01:53]}  Qxd8 {[%clk 0:01:32]} 25. c3 {[%clk 0:01:49]}  Qd5 {[%clk 0:01:18]} 26. b4 {[%clk 0:01:47]}  Be4 {[%clk 0:01:12]} 27. Ne1 {[%clk 0:01:40]}  Qa2 {[%clk 0:01:03]} 28. Qd2 {[%clk 0:01:38]}  Bd5 {[%clk 0:00:54]} 29. f3 {[%clk 0:01:35]}  h5 {[%clk 0:00:47]} 30. Kf2 {[%clk 0:01:34]}  Qc4 {[%clk 0:00:42]} 31. e4 {[%clk 0:01:31]}  Bf7 {[%clk 0:00:38]} 32. Nd3 {[%clk 0:01:27]}  b6 {[%clk 0:00:33]} 33. g3 {[%clk 0:01:16]}  Qa2 {[%clk 0:00:21]} 34. h4 {[%clk 0:01:13]}  Qb1 {[%clk 0:00:19]} 35. Ne1 {[%clk 0:01:03]}  c5 {[%clk 0:00:14]} 36. bxc5 {[%clk 0:01:02]}  bxc5 {[%clk 0:00:12]} 37. Nd3 {[%clk 0:00:56]}  Qh1 {[%clk 0:00:07]} 38. Ke3 {[%clk 0:00:51]}  c4 {[%clk 0:00:03]} 39. Ne1 {[%clk 0:00:45]}  Qg1+ {[%clk 0:00:01]} 40. Qf2 {[%clk 0:00:43]}  Qxf2+ {[%clk 0:00:02]} 41. Kxf2 {[%clk 0:00:43]}  Kf8 {[%clk 0:00:03]} 42. f4 {[%clk 0:00:40]}  Ke7 {[%clk 0:00:04]} 43. Ke3 {[%clk 0:00:38]}  Kd6 {[%clk 0:00:03]} 44. Nf3 {[%clk 0:00:37]}  Be6 {[%clk 0:00:03]} 45. fxe5+ {[%clk 0:00:37]}  fxe5 {[%clk 0:00:03]} 46. Ng5 {[%clk 0:00:37]}  Bg8 {[%clk 0:00:03]} 47. Nf3 {[%clk 0:00:35]}  Be6 {[%clk 0:00:02]} 48. Ng5 {[%clk 0:00:35]}  Bg8 {[%clk 0:00:02]} 49. Nh3 {[%clk 0:00:35]}  a6 {[%clk 0:00:02]} 50. Nf2 {[%clk 0:00:35]}  Be6 {[%clk 0:00:01]} 51. Nd1 {[%clk 0:00:35]}  Kc5 {[%clk 0:00:02]} 52. Kd2 {[%clk 0:00:33]}  Bg4 {[%clk 0:00:02]} 53. Ne3 {[%clk 0:00:33]}  Bf3 {[%clk 0:00:03]} 54. Nd5 {[%clk 0:00:28]}  Bxe4 {[%clk 0:00:02]} 55. Ne7 {[%clk 0:00:28]}  Kd6 {[%clk 0:00:02]} 56. Nc8+ {[%clk 0:00:26]}  Kc7 {[%clk 0:00:02]} 57. Ne7 {[%clk 0:00:26]}  Kd7 {[%clk 0:00:03]} 58. Ng8 {[%clk 0:00:23]}  Ke6 {[%clk 0:00:03]} 59. Nh6 {[%clk 0:00:22]}  Kf6 {[%clk 0:00:03]} 60. Ng8+ {[%clk 0:00:21]}  Kf7 {[%clk 0:00:03]} 61. Nh6+ {[%clk 0:00:21]}  Kg7 {[%clk 0:00:04]} 62. Ke3 {[%clk 0:00:19]}  Bb1 {[%clk 0:00:04]} 0-1


[Site "https://www.chess.com"]

[Event "Titled Tuesday Blitz June 28 Late 2022"]
[White "Preotu, Razvan"]
[Black "Federzoni, Enzo"]
[WhiteFideId "2613280"]
[BlackFideId "2173301"]
[WhiteElo "2705"]
[BlackElo "2400"]
[Result "1-0"]
[Round "01"]
[TimeControl "180+1"]
[Date "2022.06.29"]
[WhiteClock "0:00:06"]
[BlackClock "0:00:06"]

1. e4 {[%clk 0:02:51]}  c5 {[%clk 0:02:58]} 2. Nf3 {[%clk 0:02:51]}  d6 {[%clk 0:02:58]} 3. d4 {[%clk 0:02:51]}  cxd4 {[%clk 0:02:59]} 4. Nxd4 {[%clk 0:02:52]}  Nf6 {[%clk 0:03:00]} 5. Nc3 {[%clk 0:02:52]}  a6 {[%clk 0:03:00]} 6. Be2 {[%clk 0:02:52]}  e5 {[%clk 0:03:00]} 7. Nb3 {[%clk 0:02:52]}  Be7 {[%clk 0:03:01]} 8. Be3 {[%clk 0:02:52]}  Be6 {[%clk 0:03:00]} 9. O-O {[%clk 0:02:52]}  O-O {[%clk 0:02:59]} 10. Qd3 {[%clk 0:02:45]}  a5 {[%clk 0:02:57]} 11. Nd5 {[%clk 0:02:37]}  a4 {[%clk 0:02:43]} 12. Nd2 {[%clk 0:02:36]}  Nbd7 {[%clk 0:02:41]} 13. Nc4 {[%clk 0:02:20]}  Bxd5 {[%clk 0:02:35]} 14. exd5 {[%clk 0:02:21]}  b5 {[%clk 0:02:32]} 15. Na3 {[%clk 0:02:21]}  b4 {[%clk 0:02:30]} 16. Nc4 {[%clk 0:02:08]}  Rc8 {[%clk 0:02:23]} 17. Qd2 {[%clk 0:01:43]}  Rb8 {[%clk 0:02:04]} 18. f4 {[%clk 0:01:28]}  Qc7 {[%clk 0:01:58]} 19. Rad1 {[%clk 0:01:20]}  Ne4 {[%clk 0:01:45]} 20. Qe1 {[%clk 0:01:19]}  exf4 {[%clk 0:01:42]} 21. Bxf4 {[%clk 0:01:16]}  Bg5 {[%clk 0:01:28]} 22. Bxg5 {[%clk 0:01:06]}  Nxg5 {[%clk 0:01:28]} 23. Bd3 {[%clk 0:00:54]}  Nc5 {[%clk 0:01:12]} 24. Qh4 {[%clk 0:00:27]}  h6 {[%clk 0:01:03]} 25. b3 {[%clk 0:00:21]}  Rfe8 {[%clk 0:00:52]} 26. Qf4 {[%clk 0:00:20]}  Nce4 {[%clk 0:00:45]} 27. Rde1 {[%clk 0:00:18]}  Qc5+ {[%clk 0:00:33]} 28. Qe3 {[%clk 0:00:19]}  Qxe3+ {[%clk 0:00:31]} 29. Rxe3 {[%clk 0:00:19]}  axb3 {[%clk 0:00:27]} 30. axb3 {[%clk 0:00:19]}  Nc5 {[%clk 0:00:27]} 31. Rxe8+ {[%clk 0:00:19]}  Rxe8 {[%clk 0:00:28]} 32. Nxd6 {[%clk 0:00:20]}  Rd8 {[%clk 0:00:24]} 33. Nf5 {[%clk 0:00:14]}  g6 {[%clk 0:00:18]} 34. Ne7+ {[%clk 0:00:05]}  Kf8 {[%clk 0:00:18]} 35. Nc6 {[%clk 0:00:06]}  Rxd5 {[%clk 0:00:14]} 36. Nxb4 {[%clk 0:00:07]}  Re5 {[%clk 0:00:09]} 37. Bc4 {[%clk 0:00:06]}  Nge6 {[%clk 0:00:08]} 38. Nd3 {[%clk 0:00:04]}  Nxd3 {[%clk 0:00:07]} 39. Bxd3 {[%clk 0:00:05]}  Ra5 {[%clk 0:00:07]} 40. Bxg6 {[%clk 0:00:05]}  Kg7 {[%clk 0:00:07]} 41. Bxf7 {[%clk 0:00:05]}  Ng5 {[%clk 0:00:07]} 42. Bc4 {[%clk 0:00:06]}  Ra2 {[%clk 0:00:07]} 43. Bd3 {[%clk 0:00:06]}  Ne6 {[%clk 0:00:06]} 44. h3 {[%clk 0:00:05]}  Nd4 {[%clk 0:00:06]} 45. Rf2 {[%clk 0:00:06]}  Ra1+ {[%clk 0:00:05]} 46. Kh2 {[%clk 0:00:06]}  Ra2 {[%clk 0:00:06]} 47. Kg3 {[%clk 0:00:07]}  Nxb3 {[%clk 0:00:06]} 48. cxb3 {[%clk 0:00:06]} 1-0


[Site "https://www.chess.com"]

[Event "Titled Tuesday Blitz June 28 Late 2022"]
[White "Pulpan, Jakub"]
[Black "Romero Ruscalleda, Josep"]
[WhiteFideId "302759"]
[BlackFideId "2231859"]
[WhiteElo "2495"]
[BlackElo "2286"]
[Result "1-0"]
[Round "01"]
[TimeControl "180+1"]
[Date "2022.06.29"]
[WhiteClock "0:02:15"]
[BlackClock "0:01:38"]

1. b3 {[%clk 0:03:00]}  g6 {[%clk 0:03:00]} 2. Bb2 {[%clk 0:03:00]}  Nf6 {[%clk 0:03:01]} 3. Nf3 {[%clk 0:03:00]}  Bg7 {[%clk 0:03:01]} 4. g3 {[%clk 0:03:01]}  O-O {[%clk 0:03:01]} 5. Bg2 {[%clk 0:03:02]}  d6 {[%clk 0:03:02]} 6. d4 {[%clk 0:03:02]}  Nc6 {[%clk 0:02:59]} 7. O-O {[%clk 0:03:03]}  Bf5 {[%clk 0:02:59]} 8. Nbd2 {[%clk 0:03:01]}  Qc8 {[%clk 0:02:56]} 9. Re1 {[%clk 0:03:02]}  Re8 {[%clk 0:02:54]} 10. e4 {[%clk 0:03:02]}  Bg4 {[%clk 0:02:53]} 11. Qe2 {[%clk 0:03:00]}  e5 {[%clk 0:02:50]} 12. dxe5 {[%clk 0:02:58]}  Nxe5 {[%clk 0:02:49]} 13. Bxe5 {[%clk 0:02:47]}  Rxe5 {[%clk 0:02:41]} 14. Qf1 {[%clk 0:02:39]}  Re8 {[%clk 0:02:40]} 15. Rad1 {[%clk 0:02:37]}  a6 {[%clk 0:02:27]} 16. h3 {[%clk 0:02:35]}  Bd7 {[%clk 0:02:27]} 17. e5 {[%clk 0:02:33]}  dxe5 {[%clk 0:02:22]} 18. Nxe5 {[%clk 0:02:33]}  Be6 {[%clk 0:02:20]} 19. Ndf3 {[%clk 0:02:31]}  Nd5 {[%clk 0:02:15]} 20. Ng5 {[%clk 0:02:27]}  Nb6 {[%clk 0:01:55]} 21. Nxe6 {[%clk 0:02:26]}  Rxe6 {[%clk 0:01:54]} 22. Nd3 {[%clk 0:02:20]}  Rd6 {[%clk 0:01:40]} 23. Nc5 {[%clk 0:02:15]}  c6 {[%clk 0:01:38]} 24. Rxd6 {[%clk 0:02:15]} 1-0


[Site "https://www.chess.com"]

[Event "Titled Tuesday Blitz June 28 Late 2022"]
[White "Riehle, Marco"]
[Black "Urbina Perez, Juan Antonio"]
[WhiteFideId "12904392"]
[BlackFideId "2217368"]
[WhiteElo "2462"]
[BlackElo "2192"]
[Result "1/2-1/2"]
[Round "01"]
[TimeControl "180+1"]
[Date "2022.06.28"]
[WhiteClock "0:00:23"]
[BlackClock "0:00:14"]

1. e4 {[%clk 0:02:59]}  e5 {[%clk 0:02:59]} 2. Nf3 {[%clk 0:02:59]}  Nf6 {[%clk 0:02:58]} 3. Nxe5 {[%clk 0:02:58]}  d6 {[%clk 0:02:58]} 4. Nf3 {[%clk 0:02:58]}  Nxe4 {[%clk 0:02:57]} 5. Nc3 {[%clk 0:02:58]}  Nxc3 {[%clk 0:02:57]} 6. dxc3 {[%clk 0:02:59]}  Be7 {[%clk 0:02:56]} 7. Bf4 {[%clk 0:02:59]}  Be6 {[%clk 0:02:55]} 8. Qd2 {[%clk 0:02:59]}  h6 {[%clk 0:02:53]} 9. Nd4 {[%clk 0:02:58]}  Bd7 {[%clk 0:02:51]} 10. O-O-O {[%clk 0:02:57]}  Nc6 {[%clk 0:02:51]} 11. f3 {[%clk 0:02:50]}  a6 {[%clk 0:02:46]} 12. g4 {[%clk 0:02:44]}  Nxd4 {[%clk 0:02:42]} 13. Qxd4 {[%clk 0:02:42]}  Bf6 {[%clk 0:02:42]} 14. Re1+ {[%clk 0:02:42]}  Kf8 {[%clk 0:02:41]} 15. Qe3 {[%clk 0:02:26]}  Be6 {[%clk 0:02:28]} 16. a3 {[%clk 0:02:21]}  Qd7 {[%clk 0:02:25]} 17. Bd3 {[%clk 0:02:20]}  Re8 {[%clk 0:02:22]} 18. h4 {[%clk 0:02:11]}  Bd5 {[%clk 0:02:18]} 19. Qf2 {[%clk 0:02:09]}  g6 {[%clk 0:02:10]} 20. g5 {[%clk 0:01:51]}  hxg5 {[%clk 0:02:00]} 21. hxg5 {[%clk 0:01:48]}  Rxe1+ {[%clk 0:02:00]} 22. Rxe1 {[%clk 0:01:46]}  Bg7 {[%clk 0:01:51]} 23. c4 {[%clk 0:01:23]}  Bc6 {[%clk 0:01:48]} 24. c5 {[%clk 0:01:09]}  d5 {[%clk 0:01:42]} 25. Qg3 {[%clk 0:01:05]}  Rh3 {[%clk 0:01:34]} 26. Qg2 {[%clk 0:00:59]}  d4 {[%clk 0:01:33]} 27. Be4 {[%clk 0:00:55]}  Bxe4 {[%clk 0:01:30]} 28. Rxe4 {[%clk 0:00:56]}  Rh5 {[%clk 0:01:10]} 29. Be5 {[%clk 0:00:47]}  d3 {[%clk 0:01:03]} 30. Rd4 {[%clk 0:00:46]}  Qf5 {[%clk 0:00:59]} 31. Bxg7+ {[%clk 0:00:43]}  Kxg7 {[%clk 0:00:59]} 32. Rxd3 {[%clk 0:00:43]}  Rxg5 {[%clk 0:00:56]} 33. Qh2 {[%clk 0:00:33]}  Qxc5 {[%clk 0:00:55]} 34. b4 {[%clk 0:00:32]}  Qe5 {[%clk 0:00:36]} 35. Qxe5+ {[%clk 0:00:32]}  Rxe5 {[%clk 0:00:36]} 36. Rd7 {[%clk 0:00:32]}  c5 {[%clk 0:00:36]} 37. Rxb7 {[%clk 0:00:31]}  cxb4 {[%clk 0:00:36]} 38. axb4 {[%clk 0:00:31]}  Rf5 {[%clk 0:00:36]} 39. c4 {[%clk 0:00:30]}  Rxf3 {[%clk 0:00:34]} 40. c5 {[%clk 0:00:31]}  g5 {[%clk 0:00:27]} 41. Kd2 {[%clk 0:00:31]}  g4 {[%clk 0:00:26]} 42. Ke2 {[%clk 0:00:29]}  Rf6 {[%clk 0:00:24]} 43. Rb6 {[%clk 0:00:26]}  g3 {[%clk 0:00:20]} 44. c6 {[%clk 0:00:20]}  g2 {[%clk 0:00:19]} 45. c7 {[%clk 0:00:20]}  g1=Q {[%clk 0:00:18]} 46. Rxf6 {[%clk 0:00:20]}  Qc1 {[%clk 0:00:15]} 47. Rf2 {[%clk 0:00:20]}  Qxc7 {[%clk 0:00:15]} 48. Kf3 {[%clk 0:00:21]}  Qb7+ {[%clk 0:00:14]} 49. Kg3 {[%clk 0:00:21]}  Qxb4 {[%clk 0:00:14]} 50. Kg2 {[%clk 0:00:22]}  Qe4+ {[%clk 0:00:13]} 51. Kg1 {[%clk 0:00:22]}  Qe3 {[%clk 0:00:13]} 52. Kg2 {[%clk 0:00:23]}  Qxf2+ {[%clk 0:00:13]} 53. Kh1 {[%clk 0:00:23]}  a5 {[%clk 0:00:14]} 1/2-1/2


[Site "https://www.chess.com"]

[Event "Titled Tuesday Blitz June 28 Late 2022"]
[White "Sailer, Mike"]
[Black "Barria Zuniga, Daniel"]
[WhiteFideId "2012901"]
[BlackFideId "3400816"]
[WhiteElo "2109"]
[BlackElo "2414"]
[Result "0-1"]
[Round "01"]
[TimeControl "180+1"]
[Date "2022.06.29"]
[WhiteClock "0:00:02"]
[BlackClock "0:00:18"]

1. d4 {[%clk 0:02:58]}  Nf6 {[%clk 0:02:58]} 2. Nf3 {[%clk 0:02:59]}  e6 {[%clk 0:02:58]} 3. Bf4 {[%clk 0:02:59]}  b6 {[%clk 0:02:57]} 4. e3 {[%clk 0:03:00]}  Bb7 {[%clk 0:02:55]} 5. Be2 {[%clk 0:03:00]}  Nh5 {[%clk 0:02:52]} 6. Bg5 {[%clk 0:03:00]}  Be7 {[%clk 0:02:51]} 7. Bxe7 {[%clk 0:02:59]}  Qxe7 {[%clk 0:02:52]} 8. c4 {[%clk 0:02:53]}  O-O {[%clk 0:02:47]} 9. Nc3 {[%clk 0:02:52]}  f5 {[%clk 0:02:46]} 10. a3 {[%clk 0:02:40]}  Nf6 {[%clk 0:02:45]} 11. b4 {[%clk 0:02:39]}  a5 {[%clk 0:02:36]} 12. c5 {[%clk 0:02:36]}  d6 {[%clk 0:02:13]} 13. cxd6 {[%clk 0:02:30]}  cxd6 {[%clk 0:02:11]} 14. O-O {[%clk 0:02:29]}  Nc6 {[%clk 0:02:02]} 15. b5 {[%clk 0:02:25]}  Na7 {[%clk 0:02:01]} 16. Na4 {[%clk 0:02:25]}  Nd7 {[%clk 0:01:54]} 17. Qb3 {[%clk 0:02:20]}  Rfc8 {[%clk 0:01:53]} 18. Rac1 {[%clk 0:02:20]}  Bd5 {[%clk 0:01:40]} 19. Bc4 {[%clk 0:02:18]}  Bxc4 {[%clk 0:01:25]} 20. Rxc4 {[%clk 0:02:17]}  d5 {[%clk 0:01:25]} 21. Rxc8+ {[%clk 0:02:10]}  Rxc8 {[%clk 0:01:24]} 22. Ne5 {[%clk 0:02:08]}  Nxe5 {[%clk 0:01:19]} 23. dxe5 {[%clk 0:02:08]}  Qc7 {[%clk 0:01:15]} 24. f4 {[%clk 0:02:07]}  Qb8 {[%clk 0:01:14]} 25. Qb2 {[%clk 0:02:02]}  Rc4 {[%clk 0:01:13]} 26. Nc3 {[%clk 0:01:58]}  Qc7 {[%clk 0:01:13]} 27. Nd1 {[%clk 0:01:43]}  Qc5 {[%clk 0:01:12]} 28. h3 {[%clk 0:01:34]}  Nxb5 {[%clk 0:01:11]} 29. Kh2 {[%clk 0:01:32]}  Rc2 {[%clk 0:01:08]} 30. Qb3 {[%clk 0:01:28]}  Qc4 {[%clk 0:01:08]} 31. Qb1 {[%clk 0:01:23]}  h6 {[%clk 0:00:52]} 32. Nf2 {[%clk 0:00:33]}  a4 {[%clk 0:00:42]} 33. Nh1 {[%clk 0:00:22]}  Nxa3 {[%clk 0:00:36]} 34. Qa1 {[%clk 0:00:17]}  b5 {[%clk 0:00:27]} 35. Ng3 {[%clk 0:00:09]}  b4 {[%clk 0:00:25]} 36. Rd1 {[%clk 0:00:05]}  Ra2 {[%clk 0:00:20]} 37. Qd4 {[%clk 0:00:04]}  Qxd4 {[%clk 0:00:20]} 38. Rxd4 {[%clk 0:00:04]}  Nc2 {[%clk 0:00:20]} 39. Rd3 {[%clk 0:00:01]}  Rb2 {[%clk 0:00:20]} 40. Ne2 {[%clk 0:00:01]}  a3 {[%clk 0:00:19]} 41. Nd4 {[%clk 0:00:01]}  Nxd4 {[%clk 0:00:18]} 42. Rxd4 {[%clk 0:00:02]}  a2 {[%clk 0:00:18]} 0-1


[Site "https://www.chess.com"]